[Event "Croatian Championship 2023"]
[Site "Zagreb"]
[Date "2023.12.06"]
[Round "3.3"]
[White "Bosiocic, Marin"]
[Black "Rezan, Sasa"]
[Result "1-0"]
[ECO "E05"]
[WhiteElo "2545"]
[BlackElo "2406"]
[Annotator "TA"]
[PlyCount "137"]
[EventDate "2023.12.05"]
[EventType "tourn"]
[EventCountry "CRO"]
[SourceTitle "playchess.com"]
[Source "ChessBase"]
[SourceQuality "1"]
[TimeControl "40/5400+30:1800+30"]

{[%evp 12,137,37,14,33,33,16,0,0,0,37,6,34,26,37,37,37,33,33,27,33,2,11,0,11,0,0,-12,14,18,15,0,0,0,45,0,0,0,0,0,0,0,1,8,9,6,31,36,35,29,35,31,27,2,76,85,80,53,122,124,158,134,185,185,188,198,188,93,531,486,587,570,552,545,674,483,29968,29970,29970,29971,29962,29964,29964,1503,1188,927,841,593,594,537,673,530,534,451,525,522,730,660,600,414,677,667,874,833,1034,612,948,471,523,522,437,360,590,360,350,270,29990,322,382,382,702,393,389,424,29995,29996,29996,29997]} 1. Nf3 Nf6 2. g3 d5 3. Bg2 e6 4. O-O Be7 5. c4 O-O 6. d4 dxc4 7. Qc2 c6 {E05: Open Catalan: 5 Nf3 Be7.} 8. a4 b6 9. Qxc4 Ba6 {The position is equal.} 10. Qc2 Nbd7 11. Nc3 Rc8 12. Rd1 Nd5 13. e4 Nb4 14. Qb1 {[#]} Bb7 $146 ({Predecessor:} 14... Re8 15. Be3 c5 16. Rd2 cxd4 17. Nxd4 Bc5 18. Qd1 Qf6 19. Nf3 Bxe3 20. Rxd7 Bc5 {0-1 Akdogan,A (2260)-Sabuk,P (2369) Lvov Tradition IM 06 2018 (9)}) 15. h4 a5 16. e5 h6 17. Qe4 Qe8 18. Qg4 Kh8 19. Bf4 Nd5 (19... c5 $5 {[%cal Rb7f3]}) 20. Nxd5 cxd5 21. Rac1 Rxc1 22. Rxc1 Ba6 23. Rc7 (23. Qh5 $5) 23... Be2 24. Bf1 Bd8 25. Rc3 Bxf1 26. Kxf1 $40 {[%mdl 128] White has some attack.} f5 27. Qh3 Nb8 {[%cal Bd7b8,Bb8a6,Ba6b4][%mdl 32]} 28. b3 Qh5 {[%cal Og7g5]} 29. Kg2 Na6 30. Qh1 Nb4 $1 31. Bd2 Qg4 32. Rc8 Kg8 (32... f4 $11 33. Bxb4 axb4) 33. Bxb4 $16 axb4 34. Rc6 Qg6 (34... h5 $14) 35. Qb1 Re8 36. Qc1 {White is more active.} Qf7 (36... Rf8 $16 {might work better.}) 37. Ng1 $18 g5 38. hxg5 hxg5 39. Nh3 (39. Rc8 $18 {[%cal Oc8d8] and White stays clearly on top. Strongly threatening Rxd8!} Qd7 40. Nh3) 39... g4 $2 {[%mdl 8192] Loses the game.} (39... Qh5 $16) 40. Nf4 Bg5 41. Rxb6 Bxf4 42. gxf4 {[%mdl 4096] Endgame KQR-KQR} Kg7 43. Qc6 {[%cal Oa4a5] Black must now prevent a5!} g3 {[#]} (43... Re7 $18 44. Qd6 Re8 45. Qxb4 (45. Rxb4 g3 $11) 45... Qh5) 44. Rb7 $1 (44. Kxg3 Qh5 45. f3 (45. Rxb4 $2 Qg4+ 46. Kh2 Rh8#) 45... Qh1 $11) 44... Re7 45. Rxe7 ({Worse is} 45. Rxb4 Qh5 46. Kxg3 Qg4+ 47. Kh2 Kg6 $11) 45... Qxe7 46. fxg3 {KQ-KQ} Qa7 47. Qc5 (47. Qxe6 $142 Qxd4 48. Qxf5 Qe3 49. e6 Qe1 50. Qf7+ Kh6 51. Qf6+ Kh7 52. e7) 47... Qa6 48. Qc2 (48. Qxb4 Qe2+ 49. Kg1 Qe3+ 50. Kf1 Kg6 $16) 48... Qb6 49. Qd2 Kg6 50. Kf2 Kh5 51. Qe2+ Kg6 52. Ke3 Qc6 53. Qd2 {Wards off Qc1} Qb6 54. Qc2 Qa6 {Inhibits Qc8.} 55. Qd3 {Prevents Qf1} Qc6 (55... Qc8 $142 56. Kd2 Qh8) 56. Kd2 Kh5 57. Qc2 Qa6 58. Ke1 {[#] Qe2+ would kill now.} Kh6 59. Qe2 (59. g4 $142) 59... Qb6 60. Qd1 Qc6 61. Qd2 Qb6 $2 (61... Kh5 62. Kf2 (62. Qxb4 Qc1+ 63. Ke2 Qc2+ 64. Ke3 Kg4 $14) 62... Kh6) 62. Kd1 {[%cal Og3g4] aiming for g4!} Kh5 63. Qh2+ Kg4 $2 (63... Kg6 $18 64. Qd2 Qb8) 64. Qf2 $2 (64. Ke2 {mates} Qd8 65. a5 Qe7 66. a6 Qg5 67. fxg5 Kxg5 68. a7 f4 69. a8=Q fxg3 70. Qxg3+ Kf5 71. Qf8+ Ke4 72. Qh4#) 64... Qc6 65. Qc2 Qb7 $2 (65... Qb6 66. Ke2 Qxd4) 66. Qd3 Qc7 67. Ke2 Kh3 (67... Kh5 $18 68. Qd2 Qc6) 68. Kf2 Kh2 69. Qe2 {Weighted Error Value: White=0.22 (precise) /Black=0.50} 1-0

[Event "Croatian Championship 2023"]
[Site "Zagreb"]
[Date "2023.12.06"]
[Round "3.4"]
[White "Fercec, Nenad"]
[Black "Bukal, Vladimir Jr."]
[Result "1-0"]
[ECO "C64"]
[WhiteElo "2401"]
[BlackElo "2337"]
[Annotator "RC"]
[PlyCount "75"]
[EventDate "2023.12.05"]
[EventType "tourn"]
[EventCountry "CRO"]
[SourceTitle "playchess.com"]
[Source "ChessBase"]
[SourceQuality "1"]
[TimeControl "40/5400+30:1800+30"]

1. e4 e5 2. Nf3 Nc6 3. Bb5 a6 4. Ba4 Bc5 5. O-O Nge7 6. c3 Ng6 7. d4 Ba7 8. Bg5 f6 9. Be3 O-O 10. d5 Nce7 11. Bxa7 Rxa7 12. d6 cxd6 13. Qxd6 b5 14. Bb3+ Kh8 15. a4 Rb7 16. axb5 Rxb5 17. Nbd2 Rb6 18. Qa3 f5 19. Nc4 fxe4 20. Nfxe5 Rbf6 21. Ng4 Rf4 22. Nge3 Bb7 23. Nd6 Bc6 24. Qc5 Qb8 25. Bc2 R8f6 26. Rad1 Re6 27. Rd4 Qf8 28. Bb3 Ref6 29. Qc4 Ne5 30. Qe2 N7g6 31. Qd2 Nh4 32. Bd1 Rg6 33. Kh1 Nhf3 34. gxf3 Qf6 35. Ng2 Rxg2 36. Kxg2 Qg5+ 37. Kh1 Ng6 38. Nf7+ 1-0

[Event "Croatian Championship 2023"]
[Site "Zagreb"]
[Date "2023.12.06"]
[Round "3.5"]
[White "Kozul, Zdenko"]
[Black "Rogic, Davor"]
[Result "1/2-1/2"]
[ECO "D12"]
[WhiteElo "2532"]
[BlackElo "2431"]
[Annotator "TA"]
[PlyCount "77"]
[EventDate "2023.12.05"]
[EventType "tourn"]
[EventCountry "CRO"]
[SourceTitle "playchess.com"]
[Source "ChessBase"]
[SourceQuality "1"]
[TimeControl "40/5400+30:1800+30"]

{[%evp 13,77,29,31,23,26,0,27,32,39,39,48,42,43,43,66,31,52,50,45,47,48,43,63,62,104,119,122,114,118,114,118,120,135,94,108,114,95,102,98,84,77,0,0,0,0,-58,-49,-114,-110,-104,-27,-185,-151,-216,-69,-85,0,0,0,0,0,0,0,0,0,0]} 1. d4 d5 2. c4 c6 3. Nf3 Nf6 4. e3 Bf5 5. Nc3 e6 6. Nh4 Bg6 {6...Be4 is the fancy move.} 7. Nxg6 hxg6 8. g3 {D12: Slav Defence: 3 Nf3 Nf6 4 e3 Bf5.} Nbd7 9. Bg2 Be7 10. Qe2 {White has an edge.} O-O 11. O-O Qc7 12. Rd1 Rad8 13. Bd2 Rfe8 {[#]} 14. Be1 $146 (14. Rac1 $5 {[%cal Rc4d5]}) ({Predecessor:} 14. Rac1 Qb8 15. Be1 a6 16. Rc2 b5 17. b3 Bf8 18. f4 bxc4 19. bxc4 c5 20. cxd5 exd5 21. Nxd5 Nxd5 22. Bxd5 cxd4 {1-0 Drygalov,A (2317)-Skatchkov,V (2099) Samara Polugaevsky Memorial 6th 2016 (4)}) 14... Qb8 15. b3 {[%cal Bb2b3,Bb3b4,Bb4b5][%mdl 32]} g5 16. h3 a6 17. a4 Nf8 18. Rab1 Ng6 19. b4 Qc8 {[#]} 20. b5 $1 axb5 21. axb5 Bf8 22. Na4 e5 23. Ba5 Rd6 24. c5 Rde6 25. Nb6 Qd8 26. bxc6 bxc6 27. Qa6 {White is more active.} (27. Ra1 $16 {[%cal Ob6d5] Nxd5! is the strong threat.} Qe7 28. Qf3) 27... exd4 $11 28. exd4 Ne4 $1 {[%cal Oe4f2]} 29. Ra1 (29. Be1 $11) 29... f5 (29... Nxf2 {keeps more tension.} 30. Kxf2 Qf6+ 31. Kg1 Re2) 30. Be1 (30. Qd3 $15) 30... g4 $17 31. hxg4 fxg4 ({Better is} 31... f4 $17 32. Qf1 fxg3 33. fxg3 Rf6) 32. Bd2 $2 {Wards off Qg5} (32. Qf1 $11 {and White stays safe.}) 32... Qf6 33. Be3 (33. Bxe4 $17 Rxe4 34. Nd7) 33... Qf5 (33... Nxg3 $1 $19 34. Nd7 Qf5 35. Nxf8 Nxf8 36. fxg3 Rxe3) 34. Qd3 {[#]} Qh5 (34... Be7 $1 $17 {Hoping for ...Bg5.} 35. Rd2 Bg5 36. Bxg5 Qxg5) 35. Ra8 $1 $36 {[%mdl 2048] White is more active. The position is equal.} R8e7 {[%cal Oe4g3]} ({Much less strong is} 35... Rxa8 36. Nxa8 Ng5 37. Nc7 $16) 36. Nc8 Re8 {[%cal Oe4g3] Strongly threatening ...Nxg3!} 37. Nb6 $1 R8e7 {[%cal Oe4g3] aiming for ...Nxg3!} ({Don't take} 37... Rxa8 38. Nxa8 Re7 39. Ra1 $16 (39. Nb6 Kh7 $14)) 38. Nc8 Re8 {[%cal Oe4g3] And now ...Nxg3! would win.} 39. Nb6 $1 {Weighted Error Value: White=0.20 (precise) /Black=0.20 (precise)} 1/2-1/2

[Event "Croatian Championship 2023"]
[Site "Zagreb"]
[Date "2023.12.06"]
[Round "3.6"]
[White "Martinovic, Sasa"]
[Black "Novosel, Lovro"]
[Result "1-0"]
[ECO "D36"]
[WhiteElo "2556"]
[BlackElo "2370"]
[Annotator "TA"]
[PlyCount "101"]
[EventDate "2023.12.05"]
[EventType "tourn"]
[EventCountry "CRO"]
[SourceTitle "playchess.com"]
[Source "ChessBase"]
[SourceQuality "1"]
[TimeControl "40/5400+30:1800+30"]

{[%evp 21,101,14,14,0,0,0,0,0,12,-22,27,12,15,21,40,-19,36,18,3,0,16,-31,45,0,57,61,79,67,95,87,98,48,68,48,87,64,61,61,75,58,56,54,46,50,63,25,45,35,67,0,0,0,0,0,0,0,106,59,474,244,875,824,933,912,875,851,881,852,855,818,833,828,778,765,742,707,646,533,695,687,693,683]} 1. d4 d5 2. c4 e6 3. Nc3 Nf6 4. cxd5 exd5 5. Bg5 Be7 6. e3 O-O 7. Bd3 c6 8. Nge2 Nbd7 9. Qc2 Re8 10. O-O Nf8 11. f3 g6 12. a4 $5 {[%mdl 4] A promising side line. D36: Queen's Gambit Declined: Exchange Variation: Main line (5 Bg5 c6 6 Qc2).} Ne6 13. Bh4 a5 14. Rad1 {[#] The position is equal.} Qb6 $146 {[%cal Of6g4]} ({Predecessor:} 14... b6 15. Kh1 Nc7 16. Qc1 Ba6 17. Bxa6 Nxa6 18. e4 dxe4 19. Bxf6 Bxf6 20. fxe4 Bg7 {1-0 Csiki,E (2384)-Pasti,A (2361) Budapest Vezerkepzo Pentecost GM2 2023 (3)}) 15. Kh1 Nh5 (15... Ng4 $142 16. fxg4 (16. Bxe7 Nxe3 17. Bc5 Nxc5 $17) 16... Bxh4) 16. Bf2 Bd7 17. g4 Nhg7 18. h4 (18. f4 $14) 18... Nc7 (18... Qd8 $11) 19. h5 {[%cal Rh5g6]} Na6 20. Qd2 Nb4 21. Bb1 (21. hxg6 $11 fxg6 22. e4) 21... Qd8 (21... gxh5 $15 22. gxh5 Bg5) 22. Kg2 Ne6 (22... gxh5 $11 23. Rh1 Bg5) 23. Rh1 $14 Bf6 24. Rh2 Nf8 25. hxg6 fxg6 26. Na2 ({White should play} 26. Rdh1 $16) 26... Nxa2 27. Bxa2 Be6 28. Rdh1 Qe7 29. Nf4 Bf7 30. Nd3 (30. Qd1 {keeps more tension.} Bg7 31. Bb1 b6 32. Bd3) 30... b6 31. Rc1 Rac8 32. b4 axb4 33. Qxb4 Qa7 34. Rhh1 Nd7 35. Rc2 (35. Qd6 $14) 35... c5 $11 36. Qb5 c4 37. Nb4 (37. Nf4 $5 Qb7 $8 38. Ne2 $11) 37... Qb7 38. a5 {[%cal Ba4a5,Ba5a6][%mdl 32] a6 is the strong threat.} Re7 (38... Nf8 $11 {keeps the balance.}) 39. Rb1 {White is more active.} (39. a6 $16 Qa8 40. Bb1) 39... Bg5 $2 {[%mdl 8192] [#] Loses the game.} (39... Bg7 $14) 40. e4 Bf6 $2 (40... dxe4 41. Qxg5 exf3+ 42. Kh3 Nf8 43. axb6 h6) 41. a6 $18 {White is clearly winning.} Qa8 42. Nxd5 Bxd5 43. Qxd5+ Qxd5 44. exd5 {[%cal Be4d5,Bd5d6,Bd6c7][%mdl 32]} Kg7 45. Rxc4 Ra8 46. Rc7 Nb8 47. d6 {[%mdl 64] [#] Pin} Rxc7 48. dxc7 Nxa6 49. Bd5 Re8 50. Rc1 Rc8 51. Bg3 {Weighted Error Value: White=0.30/Black=0.47} 1-0

[Event "Croatian Championship 2023"]
[Site "Zagreb"]
[Date "2023.12.07"]
[Round "4.1"]
[White "Livaic, Leon"]
[Black "Novosel, Lovro"]
[Result "1/2-1/2"]
[ECO "B51"]
[WhiteElo "2543"]
[BlackElo "2370"]
[Annotator "TA"]
[PlyCount "113"]
[EventDate "2023.12.05"]
[EventType "tourn"]
[EventCountry "CRO"]
[SourceTitle "playchess.com"]
[Source "ChessBase"]
[SourceQuality "1"]
[TimeControl "40/5400+30:1800+30"]

{[%evp 9,113,17,19,0,15,7,31,16,17,25,21,25,34,35,32,29,55,39,90,62,89,95,105,104,116,117,107,117,131,68,66,74,78,68,97,83,90,89,93,68,102,104,110,102,110,108,116,116,118,116,124,96,133,103,104,102,68,0,0,0,0,0,0,0,0,-9,-8,-8,-10,-10,-6,-8,-8,-13,-5,-10,-4,-8,-8,-8,-8,-9,-8,-9,-7,-54,0,0,0,0,0,0,0,0,0,0,0,0,0,0,0,0,0,0,8,8]} 1. e4 c5 2. Nf3 d6 3. Bb5+ Nd7 4. a4 Ngf6 5. Nc3 e6 6. O-O {B51: Sicilian: Moscow Variation (3 Bb5+) without 3...Bd7.} a6 7. Be2 Be7 8. d4 {White is slightly better.} cxd4 9. Qxd4 O-O 10. Rd1 Qc7 11. a5 h6 12. h3 {[#]} Rd8 $146 ({Predecessor:} 12... Rb8 13. Be3 b5 14. axb6 Rxb6 15. Ra2 Bb7 16. Nd2 Rc6 17. Nb3 e5 18. Qb4 Ba8 19. Rxa6 Rxa6 20. Bxa6 {1-0 Salinas Herrera,P (2528)-Karolczuk,I (2260) Titled Tuesday intern op 23rd Aug Early blitz 2022 (4)}) 13. Be3 e5 (13... Re8 $14) 14. Qc4 $16 Qxc4 15. Bxc4 Re8 16. Nd2 {White has more active pieces. The black rooks are badly placed.} Nf8 17. Nd5 Nxd5 18. Bxd5 Nd7 19. Bb3 (19. Nc4 $16) 19... Nf6 $1 $14 20. f3 Be6 21. Nc4 Red8 22. Nb6 $36 {[%mdl 2048] [#] aiming for Bxe6. White is in control.} Rab8 23. Rd3 Nd7 24. Nd5 Bxd5 25. Bxd5 Nf6 26. Bb3 {A strong pair of Bishops.} Rdc8 27. Ba4 Rc4 28. c3 Rbc8 29. g3 {[%cal Bg2g3,Bg3g4,Bg4g5][%mdl 32]} Bf8 30. h4 g6 31. g4 d5 32. exd5 e4 33. fxe4 (33. Rd4 $1 $14) 33... Rxe4 $11 34. d6 Rd8 $1 ({Don't take} 34... Rxg4+ 35. Kf2 $16) 35. g5 Rxd6 36. Rxd6 Bxd6 37. gxf6 Rxe3 {[%mdl 4096] Endgame KRB-KRB} 38. Bb3 Bc5 39. Kh1 Re2 40. Rd1 {[#] Rd8+ would be deadly.} Rxb2 41. Rd8+ Bf8 42. Bd5 Rf2 $1 43. Bxb7 {Black must now prevent c4.} Rxf6 44. Ra8 Rf4 45. Bxa6 Rxh4+ 46. Kg2 Ra4 47. Bb7 (47. Bb5 $11 Ra2+ 48. Kf1) 47... Rc4 ({Better is} 47... Kg7 $15) 48. a6 {The position is equal.} Rxc3 49. a7 {[%cal Oa8f8] Strongly threatening Rxf8+!} Ra3 {...Kg7 is the strong threat.} 50. Rxf8+ Kxf8 51. a8=Q+ Rxa8 52. Bxa8 {KB-K3P} Kg7 53. Kg3 h5 54. Kf4 Kf6 55. Bc6 g5+ 56. Ke4 g4 57. Kf4 {Weighted Error Value: White=0.08 (flawless) /Black=0.08 (flawless)} 1/2-1/2

[Event "Croatian Championship 2023"]
[Site "Zagreb"]
[Date "2023.12.07"]
[Round "4.2"]
[White "Rogic, Davor"]
[Black "Martinovic, Sasa"]
[Result "1/2-1/2"]
[ECO "B50"]
[WhiteElo "2431"]
[BlackElo "2556"]
[Annotator "TA"]
[PlyCount "38"]
[EventDate "2023.12.05"]
[EventType "tourn"]
[EventCountry "CRO"]
[SourceTitle "playchess.com"]
[Source "ChessBase"]
[SourceQuality "1"]
[TimeControl "40/5400+30:1800+30"]

{[%evp 20,38,0,0,0,0,0,0,0,6,7,0,2,0,17,5,12,0,0,0,0]} 1. e4 c5 2. Nf3 Nc6 3. d4 cxd4 4. Nxd4 Nf6 5. Nc3 d6 6. Bc4 e6 7. Be3 a6 8. a4 Be7 9. O-O O-O 10. Be2 Qc7 11. f4 {The position is equal.} Nxd4 {B50: Sicilian: 2...d6, Miscellaneous.} 12. Qxd4 e5 13. Qd3 exf4 14. Bxf4 Be6 (14... Rd8 {with more complications.} 15. Qg3 Be6 16. Bh6 g6) 15. Rad1 {[%cal Rf4d6] [#]} (15. Qg3 {is more complex.} Qc5+ 16. Be3 Qe5 17. Bf4) 15... Rfd8 $146 ({Predecessor:} 15... Rad8 16. Kh1 Qc6 17. Bg5 Qc5 18. Bh4 Rfe8 19. Bf2 {½-½ Velcheva,M (2285)-Toth,A (2245) Budapest FS05 IM 1997 (2)}) 16. Kh1 Rac8 17. Qg3 Qc5 18. e5 dxe5 19. Bxe5 {[#] Threatens to win with Ne4.} Rxd1 {An uneventful encounter.   Weighted Error Value: White=0.03 (flawless) /Black=0.02 (flawless)} 1/2-1/2

[Event "Croatian Championship 2023"]
[Site "Zagreb"]
[Date "2023.12.07"]
[Round "4.3"]
[White "Bukal, Vladimir Jr."]
[Black "Kozul, Zdenko"]
[Result "0-1"]
[ECO "D71"]
[WhiteElo "2337"]
[BlackElo "2532"]
[Annotator "TA"]
[PlyCount "52"]
[EventDate "2023.12.05"]
[EventType "tourn"]
[EventCountry "CRO"]
[SourceTitle "playchess.com"]
[Source "ChessBase"]
[SourceQuality "1"]
[TimeControl "40/5400+30:1800+30"]

{[%evp 9,52,10,4,12,5,9,5,0,12,0,12,-13,0,-22,18,15,24,23,12,8,9,0,0,-43,-18,-81,-78,-83,-36,-88,-81,-134,-134,-188,-178,-192,-186,-277,-274,-275,-250,-338,-328,-398,-377]} 1. d4 Nf6 2. c4 g6 3. g3 c6 4. Bg2 d5 5. e3 Bg7 6. Ne2 {D71: Fianchetto Grünfeld: 3 g3 d5 sidelines and 5 cxd5 (without Nf3).} O-O 7. O-O a5 8. b3 {The position is equal.} b5 9. Nd2 Ba6 {[#]} 10. Qc2 $146 ({Predecessor:} 10. Bb2 Nbd7 11. Rc1 bxc4 12. bxc4 Nb6 13. c5 Nbd7 14. Re1 Qc7 15. Bc3 Rfb8 16. Rb1 Rxb1 17. Qxb1 {0-1 Ju,W (2557)-Lei,T (2444) CHN-chT China 2015 (16.9)}) 10... Nbd7 11. Re1 Rc8 12. c5 e5 13. dxe5 $1 Nxe5 14. Bb2 Re8 15. Rad1 b4 {[#] ...Bd3 is the strong threat.} 16. Nc1 {Dodges Bd3} Qe7 17. h3 (17. e4 $11 {remains equal.}) 17... Ned7 $17 {[%cal Be5d7,Bd7c5,Bc5e4][%mdl 32]} 18. Bd4 Nh5 (18... Bf8 $17 {[%cal Rd7c5]} 19. Nd3 Bxd3 20. Qxd3 Nxc5) 19. Nf3 (19. Bf1 $15 Bxf1 20. Kxf1) 19... Bf8 20. Qb2 ({Better is} 20. Nd3) 20... Nxc5 21. g4 (21. Qc2 $17 {was called for.}) 21... Ng7 $19 22. Bf6 Qd6 23. g5 (23. Be5 $142 Qd7 24. Qc2) 23... Ne4 24. Be5 Qe6 {[%cal Oe4g5]} 25. Bf4 Nh5 26. Nd4 Qe7 {Weighted Error Value: White=0.30/Black=0.06 (flawless)} 0-1

[Event "Croatian Championship 2023"]
[Site "Zagreb"]
[Date "2023.12.07"]
[Round "4.4"]
[White "Rezan, Sasa"]
[Black "Fercec, Nenad"]
[Result "1/2-1/2"]
[ECO "D85"]
[WhiteElo "2406"]
[BlackElo "2401"]
[Annotator "RC"]
[PlyCount "21"]
[EventDate "2023.12.05"]
[EventType "tourn"]
[EventCountry "CRO"]
[SourceTitle "playchess.com"]
[Source "ChessBase"]
[SourceQuality "1"]
[TimeControl "40/5400+30:1800+30"]

1. d4 Nf6 2. c4 g6 3. Nc3 d5 4. Nf3 Bg7 5. cxd5 Nxd5 6. e4 Nxc3 7. bxc3 c5 8. Be3 Nd7 9. Qd2 Nf6 10. Bb5+ Bd7 11. Bd3 1/2-1/2

[Event "Croatian Championship 2023"]
[Site "Zagreb"]
[Date "2023.12.07"]
[Round "4.5"]
[White "Tica, Sven"]
[Black "Bosiocic, Marin"]
[Result "1/2-1/2"]
[ECO "E11"]
[WhiteElo "2448"]
[BlackElo "2545"]
[Annotator "TA"]
[PlyCount "109"]
[EventDate "2023.12.05"]
[EventType "tourn"]
[EventCountry "CRO"]
[SourceTitle "playchess.com"]
[Source "ChessBase"]
[SourceQuality "1"]
[TimeControl "40/5400+30:1800+30"]

{[%evp 11,109,13,6,10,12,3,0,-10,0,0,0,0,0,0,0,0,0,0,170,167,286,267,326,329,354,278,272,288,700,693,798,790,702,452,461,457,439,447,420,395,419,375,353,243,227,240,240,198,190,200,209,55,34,27,46,34,44,37,34,37,35,39,40,34,21,12,14,18,41,47,47,42,18,21,99,43,149,73,87,72,180,163,287,219,190,0,0,0,0,0,0,0,0,0,0,0,0,0,0,0]} 1. d4 Nf6 2. c4 e6 3. g3 Bb4+ 4. Bd2 Be7 5. Bg2 d5 6. Nf3 O-O 7. Qc2 {E11: Bogo-Indian.} c6 8. Bf4 Nbd7 9. h4 $1 {[%mdl 4] outshines the older 9.0-0.} b6 10. Nc3 Bb7 11. e4 dxe4 12. Ng5 (12. Ne5 {simplifies} c5 13. O-O-O Qe8 14. Nxd7 Qxd7 15. dxc5 Qc8 16. Nxe4 Bxe4 17. Bxe4 Nxe4 18. Qxe4 Qxc5 19. Be3) 12... c5 13. d5 exd5 14. cxd5 {[%cal Bc4d5,Bd5d6][%mdl 32] [#]} Re8 $146 (14... h6 15. d6 Re8 16. dxe7 Qxe7 17. O-O-O (17. Nh3 Ba6 $16) 17... hxg5 18. hxg5 $18) (14... Nxd5 $11 {and Black stays safe.} 15. Nxd5 Bxd5) ({Predecessor:} 14... Nh5 15. Be3 f5 16. Ne6 Qb8 17. g4 fxg4 18. Bxe4 Ndf6 19. Nxf8 Qxf8 20. O-O-O Bd6 {1-0 Carlsen,M (2852)-Sarana,A (2668) Airthings Masters Div 1 W rapid 2023 (1.1)}) 15. d6 $18 Bf8 (15... c4 $142) 16. Qb3 (16. Bxe4 $2 Nxe4 17. Ngxe4 f5 $19) 16... Qc8 {And now ...c4 would win.} 17. Qxf7+ (17. Nxf7 $2 c4 18. Qb4 Nc5 $19) 17... Kh8 18. Bh3 e3 19. f3 {aiming for Qc4.} Qc6 $2 (19... b5 20. O-O-O (20. Nxb5 Bd5 $16) 20... c4) 20. Qc4 {Intending Nf7+ and mate.} h6 21. Nf7+ Kh7 22. Bf5+ g6 {[%cal Oc6f3] [#]} 23. Ng5+ {[%mdl 576] Clearance} Kh8 24. Bxg6 b5 (24... Ne5 $2 25. Bxe5 Rxe5 26. Nf7+ Kg7 27. Qf4) 25. Qd3 (25. Qxb5 Qxb5 26. Nxb5 hxg5 27. hxg5+ Kg7 $18) (25. Nf7+ Kg7 26. Bxh6+ (26. Nxb5 $2 Qxf3 27. Rf1 Qg2 $19) 26... Kg8 27. Nxb5 Qd5 28. Qxd5 Bxd5 $18) 25... c4 26. Nf7+ {[%mdl 64] Discovered Attack} Kg7 (26... Kg8 27. Bh7+ (27. Nxh6+ $2 Bxh6 28. Qe2 Ne5 $19) 27... Nxh7 28. Qg6+ (28. Nxh6+ $2 Bxh6 29. Qg6+ Bg7 $19) 28... Bg7 29. Bxh6 Qxf3 30. Qxg7#) 27. Qf5 (27. Bxh6+ Kg8 $18) 27... Qc5 (27... Qxf3 $2 28. Rf1 (28. Bxh6+ Kg8 $16) (28. Rh2 b4 $11) 28... Be4 29. Bxh6+ Kg8 30. Rxf3 $18) 28. Bxh6+ (28. Nxb5 Qxf5 29. Bxf5 Kxf7 $19) 28... Kg8 {Threatens to win with ...Qxf5.} 29. Qg5 (29. Nxb5 Qxf5 30. Bxf5 Kxf7 31. Bxd7 Nxd7 32. Bxf8 Rxf8 $17) (29. Bh7+ Kxf7 30. Qg6+ Ke6 31. Bg8+ Kxd6 32. O-O-O+ (32. Bf4+ Kc6 $17) 32... Kc7 33. Bf4+ Re5 $17) 29... Qxg5 30. hxg5 (30. Bxg5 $6 Kg7 31. h5 Bxf3 32. Bxf6+ Nxf6 $16) 30... Bxf3 31. gxf6 $2 (31. O-O $18 Bh5 32. Bxh5 (32. Rxf6 Bxg6 33. Bxf8 Nxf6 $15) 32... Nxh5 33. Rae1 (33. Nxb5 e2 $17 {[%mdl 64] Deflection})) 31... Bxh1 $14 32. Ng5 {Repels Re6. Some like it hot} (32. Nxb5 $2 Be4 33. Bxe4 Rxe4 $19) 32... Nxf6 (32... Bxh6 $2 33. f7+ Kf8 34. fxe8=Q+ Rxe8 35. Nh7+ Kg7 36. Bxe8 $18) 33. Bf7+ Kh8 34. Bxe8 Bxh6 35. Nf7+ {[%cal Bg5f7,Bf7h6,Bh6f5][%mdl 32]} (35. Ke2 {seems wilder.} Bg2 36. Nf7+ Kg7 37. Nxh6 Rxe8 38. Nf5+) 35... Kg7 36. Nxh6 Rxe8 37. Nf5+ Kg6 38. Ne7+ {A dynamic duo of knights.} Kf7 39. Ke2 {Inhibits Bf3+.} Rh8 40. Kxe3 {[%cal Oa1f1]} (40. Nxb5 Ng4 41. Rf1+ (41. Nxa7 Rh2+ {[%mdl 64] Skewer} 42. Kd1 Bf3+ 43. Kc1 Ne5 44. Nf5 Nd3+ 45. Kb1 Rxb2#) 41... Ke8 $19) 40... b4 41. Nb5 Ke6 42. Rd1 {[%cal Oe7g6]} (42. Nxa7 Kxd6 43. Nac8+ Kc5 $17) 42... Rh3 (42... Be4 $11 {keeps the balance.}) 43. Kf4 {White is more active.} (43. Nxa7 $6 Rxg3+ 44. Kd4 Rd3+ 45. Rxd3 cxd3 46. Kxd3 Kxd6 $11) ({White should try} 43. Kd4 $16) 43... Rh2 (43... Nh5+ $1 $14 44. Kg4 Rh2) 44. Nc7+ (44. Nxa7 $6 Bb7 $11) (44. Ng6 $142 $1 Nd7 45. g4 (45. Nxa7 Ba8 $11)) 44... Kd7 $16 45. Ng6 $1 {Hoping for Ne5+.} Rf2+ {[#]} (45... c3 $16) 46. Kg5 $1 $18 {Black must now prevent Ne5+.} Be4 (46... Ne4+ {keeps fighting.} 47. Kh6 Nxd6) 47. Ne5+ Kc8 {[#] Strongly threatening ...Rf5+.} 48. Nxc4 $2 (48. Rd4 $1 $18 Bh7 49. g4 (49. Rxc4 Ne4+ 50. Kh6 Nxd6 $16) (49. Nxc4 Ne4+ 50. Kh6 Rh2+ 51. Kg7 Nxd6 $16 {[%mdl 64] Remove Defender}) (49. d7+ Nxd7 50. Rxd7 Rf5+ 51. Kg4 c3 $16) 49... Ne4+ 50. Kh6 Nxd6 51. Na6 (51. Rxd6 Rh2+ 52. Kg7 Kxc7 $16) (51. Kxh7 Kxc7 52. Nxc4 Nf7 $18) (51. Nxc4 Rh2+ 52. Kg7 Nxc4 $11) 51... Nf7+ 52. Nxf7 (52. Kxh7 Nxe5 53. Re4 Nxg4 $14) 52... Rxf7 53. Rxc4+ (53. Nxb4 Bb1 $18) 53... Kb7 54. Nxb4 (54. Rxb4+ Kxa6 55. g5 Bb1 $15)) 48... Rf5+ $11 {The position is equal.} 49. Kh6 Ng4+ 50. Kg7 {Threatening mate with d7+.} Kd7 51. Re1 Rg5+ $1 52. Kf7 $1 Rf5+ 53. Kg7 Rg5+ $1 54. Kf7 $1 Rf5+ 55. Kg7 {An exciting game.   Weighted Error Value: White=0.34/Black=0.38} 1/2-1/2